fUSD/lending_fUSD_20240707
["ID","MTS","AMOUNT","RATE_DAILY","PERIOD"]
[331426589,1720389729968,-500.0,0.00034264,35]
[331426590,1720389730006,-500.0,0.00034264,36]
[331426591,1720389730040,-500.0,0.00034264,32]
[331426592,1720389730070,-500.0,0.00034264,37]
[331426593,1720389730102,-500.0,0.00034264,33]
[331426594,1720389730131,-500.0,0.00034264,38]
[331426595,1720389730160,-500.0,0.00034264,34]
[331426596,1720389730190,-500.0,0.00034264,35]
[331426597,1720389730218,-500.0,0.00034264,39]
[331426598,1720389730245,-500.0,0.00034264,30]
[331426599,1720389730274,-500.0,0.00034264,40]
[331426600,1720389730303,-500.0,0.00034264,36]
[331426601,1720389730331,-500.0,0.00034264,41]
[331426602,1720389730358,-500.0,0.00034264,31]
[331426603,1720389730388,-500.0,0.00034264,37]
[331426604,1720389730416,-589.12,0.00034264,30]
[331426605,1720389730444,-500.0,0.00034264,42]
[331426606,1720389730473,-500.0,0.00034264,32]
[331426607,1720389730501,-500.0,0.00034264,38]
[331426608,1720389730528,-589.12,0.00034264,31]
[331426609,1720389730565,-500.0,0.00034264,43]
[331426610,1720389730593,-500.0,0.00034264,39]
[331426611,1720389730622,-500.0,0.00034264,33]
[331426612,1720389730650,-500.0,0.00034264,30]
[331426613,1720389730681,-589.12,0.00034264,32]
[331426614,1720389730710,-500.0,0.00034264,30]
[331426615,1720389730738,-500.0,0.00034264,44]
[331426616,1720389730779,-511.22182767,0.00034264,40]
[331426617,1720389730810,-500.0,0.00034264,31]
[331426618,1720389730840,-589.12,0.00034264,33]
[331426619,1720389730869,-500.0,0.00034264,34]
[331426620,1720389730898,-500.0,0.00034264,31]
[331426621,1720389730930,-464.43601276,0.00034264,45]
[331426622,1720389730960,-500.0,0.00034264,32]
[331426623,1720389730991,-589.12,0.00034264,34]
[331426624,1720389731022,-504.12370527,0.00034264,32]
[331426625,1720389731056,-500.0,0.00034264,35]
[331426626,1720389731085,-500.0,0.00034264,33]
[331426627,1720389731114,-589.12,0.00034264,35]
[331426628,1720389731142,-500.0,0.00034264,34]
[331426629,1720389731171,-589.12,0.00034264,36]
[331426630,1720389731202,-637.67484361,0.00034264,36]
[331426631,1720389731231,-589.12,0.00034264,37]
[331426632,1720389731259,-203.54115472,0.00034264,35]
[331426633,1720389731287,-589.12,0.00034264,38]
[331426634,1720389731317,-861.15,0.00034264,30]
[331426635,1720389731346,-589.12,0.00034264,39]
[331426636,1720389731375,-500.0,0.00034264,30]
[331426637,1720389731404,-992.68,0.00034264,30]
[331426638,1720389731432,-589.12,0.00034264,40]
[331426639,1720389731459,-861.15,0.00034264,31]
[331426640,1720389731486,-992.68,0.00034264,31]
[331426641,1720389731514,-861.15,0.00034264,32]
[331426642,1720389731541,-589.12,0.00034264,41]
[331426643,1720389731569,-992.68,0.00034264,32]
[331426644,1720389731596,-500.0,0.00034264,31]
[331426645,1720389731624,-589.12,0.00034264,42]
[331426646,1720389731650,-861.15,0.00034264,33]
[331426647,1720389731678,-992.68,0.00034264,33]
[331426648,1720389731706,-589.12,0.00034264,43]
[331426649,1720389731733,-500.0,0.00034264,32]
[331426650,1720389731761,-861.15,0.00034264,34]
[331426651,1720389731789,-992.68,0.00034264,34]
[331426652,1720389731816,-589.12,0.00034264,44]
[331426653,1720389731844,-500.0,0.00034264,33]
[331426654,1720389731872,-861.15,0.00034264,35]
[331426655,1720389731900,-992.68,0.00034264,35]
[331426656,1720389731927,-1514.78,0.00034264,30]
[331426657,1720389731954,-589.12,0.00034264,45]
[331426658,1720389731982,-861.15,0.00034264,36]
[331426659,1720389732009,-500.0,0.00034264,30]
[331426660,1720389732036,-1514.78,0.00034264,31]
[331426661,1720389732064,-589.12,0.00034264,46]
[331426662,1720389732092,-992.68,0.00034264,36]
[331426663,1720389732119,-861.15,0.00034264,37]
[331426664,1720389732147,-500.0,0.00034264,31]
[331426665,1720389732174,-1514.78,0.00034264,32]
[331426666,1720389732203,-589.12,0.00034264,47]
[331426667,1720389732231,-992.68,0.00034264,37]
[331426668,1720389732258,-500.0,0.00034264,32]
[331426669,1720389732286,-861.15,0.00034264,38]
[331426670,1720389732316,-1514.78,0.00034264,33]
[331426671,1720389732343,-589.12,0.00034264,48]
[331426672,1720389732369,-992.68,0.00034264,38]
[331426673,1720389732616,-500.0,0.00034264,33]
[331426674,1720389732644,-861.15,0.00034264,39]
[331426675,1720389732670,-589.12,0.00034264,49]
[331426676,1720389732698,-1514.78,0.00034264,34]
[331426677,1720389732726,-992.68,0.00034264,39]
[331426678,1720389732754,-500.0,0.00034264,34]
[331426679,1720389732782,-861.15,0.00034264,40]
[331426680,1720389732810,-589.12,0.00034264,50]
[331426681,1720389732838,-1514.78,0.00034264,35]
[331426682,1720389732866,-992.68,0.00034264,40]
[331426683,1720389732895,-861.15,0.00034264,41]
[331426684,1720389732925,-500.0,0.00034264,35]
[331426685,1720389732960,-589.12,0.00034264,51]
[331426686,1720389732991,-1514.78,0.00034264,36]
[331426687,1720389733021,-992.68,0.00034264,41]
[331426688,1720389733051,-861.15,0.00034264,42]
[331426689,1720389733081,-500.0,0.00034264,36]
[331426690,1720389733111,-589.12,0.00034264,52]
[331426691,1720389733140,-992.68,0.00034264,42]
[331426692,1720389733168,-861.15,0.00034264,43]
[331426693,1720389733198,-500.0,0.00034264,37]
[331426694,1720389733226,-589.31456256,0.00034264,53]
[331426695,1720389733254,-500.0,0.00034264,38]
[331426696,1720389733284,-1514.78,0.00034264,37]
[331426697,1720389733315,-861.15,0.00034264,44]
[331426698,1720389733344,-992.68,0.00034264,43]
[331426699,1720389733370,-1514.78,0.00034264,38]
[331426700,1720389733396,-861.15,0.00034264,45]
[331426701,1720389733423,-992.68,0.00034264,44]
[331426702,1720389733451,-500.0,0.00034264,39]
[331426703,1720389733477,-1514.78,0.00034264,39]
[331426704,1720389733503,-861.15,0.00034264,46]
[331426705,1720389733530,-992.68,0.00034264,45]
[331426706,1720389733556,-1514.78,0.00034264,40]
[331426707,1720389733583,-500.0,0.00034264,40]
[331426708,1720389733609,-861.15,0.00034264,47]
[331426709,1720389733635,-992.68,0.00034264,46]
[331426710,1720389733660,-1514.78,0.00034264,41]
[331426711,1720389733686,-500.0,0.00034264,41]
[331426712,1720389733711,-861.15,0.00034264,48]
[331426713,1720389733737,-500.0,0.00034264,42]
[331426714,1720389733765,-1514.78,0.00034264,42]
[331426715,1720389733792,-992.68,0.00034264,47]
[331426716,1720389733825,-861.15,0.00034264,49]
[331426717,1720389733851,-1514.78,0.00034264,43]
[331426718,1720389733877,-500.0,0.00034264,43]
[331426719,1720389733904,-992.68,0.00034264,48]
[331426720,1720389733931,-861.15,0.00034264,50]
[331426721,1720389733958,-500.0,0.00034264,44]
[331426722,1720389733985,-1514.78,0.00034264,44]
[331426723,1720389734012,-992.68,0.00034264,49]
[331426724,1720389734039,-861.15,0.00034264,51]
[331426725,1720389734067,-1514.78,0.00034264,45]
[331426726,1720389734095,-500.0,0.00034264,45]
[331426727,1720389734124,-992.68,0.00034264,50]
[331426728,1720389734152,-861.15,0.00034264,52]
[331426729,1720389734180,-500.0,0.00034264,46]
[331426730,1720389734208,-992.68,0.00034264,51]
[331426731,1720389734236,-861.36829199,0.00034264,53]
[331426732,1720389734264,-500.0,0.00034264,47]
[331426733,1720389734294,-1514.78,0.00034264,46]
[331426734,1720389734319,-500.0,0.00034264,30]
[331426735,1720389734347,-992.68,0.00034264,52]
[331426736,1720389734372,-500.0,0.00034264,48]
[331426737,1720389734399,-992.69603732,0.00034264,53]
[331426738,1720389734426,-1077.83,0.00034264,30]
[331426739,1720389734453,-516.52464121,0.00034264,49]
[331426740,1720389734481,-1514.78,0.00034264,47]
[331426741,1720389734514,-1077.83,0.00034264,31]
[331426742,1720389734543,-1077.83,0.00034264,32]
[331426743,1720389734570,-1514.78,0.00034264,48]
[331426744,1720389734598,-500.0,0.00034264,31]
[331426745,1720389734626,-1077.83,0.00034264,33]
[331426746,1720389734653,-1514.78,0.00034264,49]
[331426747,1720389734681,-501.59874757,0.00034264,32]
[331426748,1720389734708,-1077.83,0.00034264,34]
[331426749,1720389734734,-1514.78,0.00034264,50]
[331426750,1720389734763,-1077.83,0.00034264,35]
[331426751,1720389734791,-1514.78,0.00034264,51]
[331426752,1720389734819,-500.0,0.00034264,30]
[331426753,1720389734849,-1077.83,0.00034264,36]
[331426754,1720389734877,-850.76,0.00034264,30]
[331426755,1720389734906,-500.0,0.00034264,30]
[331426756,1720389734935,-500.0,0.00034264,30]
[331426757,1720389734964,-1077.83,0.00034264,37]
[331426758,1720389734992,-500.0,0.00034264,31]
[331426759,1720389735385,-850.76,0.00034264,31]
[331426760,1720389735489,-1514.78,0.00034264,52]
[331426761,1720389735515,-500.0,0.00034264,31]
[331426762,1720389735542,-1077.83,0.00034264,38]
[331426763,1720389735568,-500.0,0.00034264,32]
[331426764,1720389735594,-500.0,0.00034264,31]
[331426765,1720389735621,-500.0,0.00034264,30]
[331426766,1720389735646,-850.76,0.00034264,32]
[331426767,1720389735672,-1514.84748932,0.00034264,53]
[331426768,1720389735699,-502.37870488,0.00034264,32]
[331426769,1720389735728,-1077.83,0.00034264,39]
[331426770,1720389735754,-500.0,0.00034264,31]
[331426771,1720389735780,-500.0,0.00034264,33]
[331426772,1720389735806,-500.0,0.00034264,32]
[331426773,1720389735832,-850.76,0.00034264,33]
[331426774,1720389735858,-1077.83,0.00034264,40]
[331426775,1720389735884,-500.0,0.00034264,34]
[331426776,1720389735909,-500.0,0.00034264,32]
[331426777,1720389735939,-500.0,0.00034264,33]
[331426778,1720389735966,-850.76,0.00034264,34]
[331426779,1720389735992,-1077.83,0.00034264,41]
[331426780,1720389736018,-500.0,0.00034264,33]
[331426781,1720389736044,-500.0,0.00034264,35]
[331426782,1720389736069,-500.0,0.00034264,34]
[331426783,1720389736096,-524.15469072,0.00034264,34]
[331426784,1720389736122,-1077.83,0.00034264,42]
[331426785,1720389736148,-500.0,0.00034264,30]
[331426786,1720389736174,-500.0,0.00034264,36]
[331426787,1720389736202,-500.0,0.00034264,35]
[331426788,1720389736229,-850.76,0.00034264,35]
[331426789,1720389736256,-500.0,0.00034264,30]
[331426790,1720389736283,-1077.83,0.00034264,43]
[331426791,1720389736313,-500.0,0.00034264,31]
[331426792,1720389736340,-500.0,0.00034264,37]
[331426793,1720389736368,-500.0,0.00034264,36]
[331426794,1720389736397,-500.0,0.00034264,30]
[331426795,1720389736423,-500.0,0.00034264,31]
[331426796,1720389736452,-850.76,0.00034264,36]
[331426797,1720389736480,-500.0,0.00034264,30]
[331426798,1720389736508,-189.45688098,0.00034264,32]
[331426799,1720389736536,-500.0,0.00034264,38]
[331426800,1720389736563,-500.0,0.00034264,37]
[331426801,1720389736589,-500.0,0.00034264,31]
[331426802,1720389736616,-500.0,0.00034264,32]
[331426803,1720389736643,-850.76,0.00034264,37]
[331426804,1720389736671,-500.0,0.00034264,31]
[331426805,1720389736698,-1077.83,0.00034264,44]
[331426806,1720389736725,-500.0,0.00034264,39]
[331426807,1720389736751,-500.0,0.00034264,32]
[331426808,1720389736777,-500.0,0.00034264,33]
[331426809,1720389736803,-500.0,0.00034264,32]
[331426810,1720389736829,-850.76,0.00034264,38]
[331426811,1720389736855,-500.0,0.00034264,40]
[331426812,1720389736882,-1077.83,0.00034264,45]
[331426813,1720389736909,-500.0,0.00034264,34]
[331426814,1720389736937,-850.76,0.00034264,39]
[331426815,1720389736966,-500.0,0.00034264,33]
[331426816,1720389736993,-500.0,0.00034264,30]
[331426817,1720389737020,-500.0,0.00034264,41]
[331426818,1720389737048,-500.0,0.00034264,33]
[331426819,1720389737074,-1077.83,0.00034264,46]
[331426820,1720389737101,-500.0,0.00034264,35]
[331426821,1720389737127,-500.0,0.00034264,34]
[331426822,1720389737155,-850.76,0.00034264,40]
[331426823,1720389737181,-500.0,0.00034264,42]
[331426824,1720389737209,-475.906038,0.00034264,31]
[331426825,1720389737235,-500.0,0.00034264,36]
[331426826,1720389737262,-1077.83,0.00034264,47]
[331426827,1720389737288,-850.76,0.00034264,41]
[331426828,1720389737321,-500.0,0.00034264,35]
[331426829,1720389737350,-500.0,0.00034264,34]
[331426830,1720389737378,-522.986436,0.00034264,43]
[331426831,1720389737496,-500.0,0.00034264,37]
[331426832,1720389737523,-850.76,0.00034264,42]
[331426833,1720389737548,-1077.83,0.00034264,48]
[331426834,1720389737573,-500.0,0.00034264,36]
[331426835,1720389737599,-500.0,0.00034264,35]
[331426836,1720389737640,-850.76,0.00034264,43]
[331426837,1720389737677,-1077.83,0.00034264,49]
[331426838,1720389737721,-500.0,0.00034264,36]
[331426839,1720389737760,-500.0,0.00034264,38]
[331426840,1720389737802,-1077.83,0.00034264,50]
[331426841,1720389737839,-850.76,0.00034264,44]
[331426842,1720389737877,-500.0,0.00034264,37]
[331426843,1720389737914,-500.0,0.00034264,37]
[331426844,1720389737955,-1077.83,0.00034264,51]
[331426845,1720389737994,-850.76,0.00034264,45]
[331426846,1720389738036,-500.0,0.00034264,38]
[331426847,1720389738076,-500.0,0.00034264,38]
[331426848,1720389738118,-500.0,0.00034264,30]
[331426849,1720389738157,-500.0,0.00034264,39]
[331426850,1720389738200,-850.76,0.00034264,46]
[331426851,1720389738240,-1077.83,0.00034264,52]
[331426852,1720389738282,-500.0,0.00034264,39]
[331426853,1720389738318,-500.0,0.00034264,39]
[331426854,1720389738358,-500.0,0.00034264,40]
[331426855,1720389738395,-500.0,0.00034264,38]
[331426856,1720389738438,-850.76,0.00034264,47]
[331426857,1720389738477,-500.0,0.00034264,40]
[331426858,1720389738517,-500.0,0.00034264,41]
[331426859,1720389738554,-500.0,0.00034264,31]
[331426860,1720389738593,-500.0,0.00034264,39]
[331426861,1720389738630,-850.76,0.00034264,48]
[331426862,1720389738670,-500.0,0.00034264,41]
[331426863,1720389738710,-500.0,0.00034264,40]
[331426864,1720389738750,-500.0,0.00034264,30]
[331426865,1720389738787,-500.0,0.00034264,42]
[331426866,1720389738825,-500.0,0.00034264,32]
[331426867,1720389738862,-500.0,0.00034264,40]
[331426868,1720389738900,-850.76,0.00034264,49]
[331426869,1720389738940,-500.0,0.00034264,42]
[331426870,1720389738987,-500.0,0.00034264,41]
[331426871,1720389739027,-500.0,0.00034264,43]
[331426872,1720389739071,-500.0,0.00034264,33]
[331426873,1720389739113,-540.44446812,0.00034264,41]
[331426874,1720389739155,-850.76,0.00034264,50]
[331426875,1720389739197,-500.0,0.00034264,43]
[331426876,1720389739241,-500.0,0.00034264,42]
[331426877,1720389739279,-509.44690079,0.00034264,44]
[331426878,1720389739321,-500.0,0.00034264,34]
[331426879,1720389739360,-500.0,0.00034264,31]
[331426880,1720389739398,-850.76,0.00034264,51]
[331426881,1720389739436,-500.0,0.00034264,44]
[331426882,1720389739474,-500.0,0.00034264,43]
[331426883,1720389739511,-500.0,0.00034264,35]
[331426884,1720389739548,-500.0,0.00034264,32]
[331426885,1720389739585,-850.76,0.00034264,52]
[331426886,1720389739624,-217.27858184,0.00034264,45]
[331426887,1720389739664,-500.0,0.00034264,44]
[331426888,1720389739707,-500.0,0.00034264,36]
[331426889,1720389739749,-500.0,0.00034264,33]
[331426890,1720389739787,-850.81291695,0.00034264,53]
[331426891,1720389739827,-516.4635468,0.00034264,45]
[331426892,1720389739865,-500.0,0.00034264,37]
[331426893,1720389739905,-500.0,0.00034264,34]
[331426894,1720389739944,-500.0,0.00034264,38]
[331426895,1720389739983,-500.0,0.00034264,35]
[331426896,1720389740024,-500.0,0.00034264,39]
[331426897,1720389740064,-500.0,0.00034264,36]
[331426898,1720389740120,-1077.98916177,0.00034264,53]
[331426899,1720389740164,-500.0,0.00034264,40]
[331426900,1720389740208,-500.0,0.00034264,41]
[331426901,1720389740250,-500.0,0.00034264,37]
[331426902,1720389740291,-500.0,0.00034264,30]
[331426903,1720389740334,-500.0,0.00034264,38]
[331426904,1720389740379,-500.0,0.00034264,42]
[331426905,1720389740420,-500.0,0.00034264,30]
[331426906,1720389740462,-500.0,0.00034264,31]
[331426907,1720389740503,-500.0,0.00034264,39]
[331426908,1720389740545,-223.60985355,0.00034264,43]
[331426909,1720389740584,-500.0,0.00034264,31]
[331426910,1720389740624,-500.0,0.00034264,32]
[331426911,1720389740666,-500.0,0.00034264,40]
[331426912,1720389740705,-500.0,0.00034264,32]
[331426913,1720389740747,-500.0,0.00034264,41]
[331426914,1720389740786,-500.0,0.00034264,30]
[331426915,1720389740827,-500.0,0.00034264,33]
[331426916,1720389740873,-500.0,0.00034264,42]
[331426917,1720389740916,-500.0,0.00034264,33]
[331426918,1720389740956,-500.0,0.00034264,34]
[331426919,1720389740997,-500.0,0.00034264,43]
[331426920,1720389741037,-500.0,0.00034264,34]
[331426921,1720389741077,-500.0,0.00034264,35]
[331426922,1720389741117,-504.65020193,0.00034264,31]
[331426923,1720389741157,-174.37792727,0.00034264,44]
[331426924,1720389741200,-500.0,0.00034264,30]
[331426925,1720389741243,-500.0,0.00034264,35]
[331426926,1720389741286,-1296.23,0.00034264,30]
[331426927,1720389741329,-500.0,0.00034264,31]
[331426928,1720389741373,-500.0,0.00034264,36]
[331426929,1720389741412,-1296.23,0.00034264,31]
[331426930,1720389741454,-576.26757789,0.00034264,36]
[331426931,1720389741495,-500.0,0.00034264,32]
[331426932,1720389741537,-500.0,0.00034264,37]
[331426933,1720389741577,-500.0,0.00034264,33]
[331426934,1720389741930,-500.0,0.00034264,38]
[331426935,1720389741974,-1296.23,0.00034264,32]
[331426936,1720389742016,-500.0,0.00034264,39]
[331426937,1720389742058,-1296.23,0.00034264,33]
[331426938,1720389742098,-898.6,0.00034264,30]
[331426939,1720389742142,-1541.33,0.00034264,30]
[331426940,1720389742183,-1296.23,0.00034264,34]
[331426941,1720389742227,-500.0,0.00034264,30]
[331426942,1720389742267,-898.6,0.00034264,31]
[331426943,1720389742306,-180.71378921,0.00034264,40]
[331426944,1720389742345,-1541.33,0.00034264,31]
[331426945,1720389742386,-500.0,0.00034264,31]
[331426946,1720389742423,-898.6,0.00034264,32]
[331426947,1720389742465,-1541.33,0.00034264,32]
[331426948,1720389742508,-1296.23,0.00034264,35]
[331426949,1720389742546,-1541.33,0.00034264,33]
[331426950,1720389742587,-1296.23,0.00034264,36]
[331426951,1720389742626,-1541.33,0.00034264,34]
[331426952,1720389742665,-1296.23,0.00034264,37]
[331426953,1720389742703,-1541.33,0.00034264,35]
[331426954,1720389742748,-1296.23,0.00034264,38]
[331426955,1720389742786,-733.76,0.00034264,30]
[331426956,1720389742828,-1541.33,0.00034264,36]
[331426957,1720389742868,-1296.23,0.00034264,39]
[331426958,1720389742910,-1541.33,0.00034264,37]
[331426959,1720389742949,-733.76,0.00034264,31]
[331426960,1720389742992,-1296.23,0.00034264,40]
[331426961,1720389743048,-733.76,0.00034264,32]
[331426962,1720389743090,-1541.33,0.00034264,38]
[331426963,1720389743132,-500.0,0.00034264,30]
[331426964,1720389743173,-1296.23,0.00034264,41]
[331426965,1720389743219,-1541.33,0.00034264,39]
[331426966,1720389743259,-1296.23,0.00034264,42]
[331426967,1720389743306,-1541.33,0.00034264,40]
[331426968,1720389743345,-733.76,0.00034264,33]
[331426969,1720389743387,-1296.23,0.00034264,43]
[331426970,1720389743425,-500.0,0.00034264,31]
[331426971,1720389743473,-500.0,0.00034264,30]
[331426972,1720389743514,-733.76,0.00034264,34]
[331426973,1720389743556,-500.0,0.00034264,30]
[331426974,1720389743596,-1541.33,0.00034264,41]
[331426975,1720389743636,-500.0,0.00034264,32]
[331426976,1720389743675,-733.76,0.00034264,35]
[331426977,1720389743714,-500.0,0.00034264,31]
[331426978,1720389743753,-500.0,0.00034264,33]
[331426979,1720389743798,-1296.23,0.00034264,44]
[331426980,1720389743839,-733.76,0.00034264,36]
[331426981,1720389743879,-500.0,0.00034264,32]
[331426982,1720389743922,-1296.23,0.00034264,45]
[331426983,1720389743966,-500.0,0.00034264,34]
[331426984,1720389744015,-1541.33,0.00034264,42]
[331426985,1720389744061,-733.76,0.00034264,37]
[331426986,1720389744110,-500.0,0.00034264,33]
[331426987,1720389744156,-1296.23,0.00034264,46]
[331426988,1720389744205,-500.0,0.00034264,35]
[331426989,1720389744251,-1541.33,0.00034264,43]
[331426990,1720389744304,-500.0,0.00034264,31]
[331426991,1720389744348,-733.76,0.00034264,38]
[331426992,1720389744394,-500.0,0.00034264,34]
[331426993,1720389744438,-500.0,0.00034264,36]
[331426994,1720389744485,-1296.23,0.00034264,47]
[331426995,1720389744528,-1541.33,0.00034264,44]
[331426996,1720389744573,-733.76,0.00034264,39]
[331426997,1720389744615,-500.0,0.00034264,35]
[331426998,1720389744659,-500.0,0.00034264,37]
[331426999,1720389744700,-500.0,0.00034264,30]
[331427000,1720389744744,-1541.33,0.00034264,45]
[331427001,1720389744792,-1296.23,0.00034264,48]
[331427002,1720389744836,-733.76,0.00034264,40]
[331427003,1720389744881,-500.0,0.00034264,36]
[331427004,1720389744926,-500.0,0.00034264,31]
[331427005,1720389744973,-1296.23,0.00034264,49]
[331427006,1720389745017,-500.0,0.00034264,38]
[331427007,1720389745064,-500.0,0.00034264,37]
[331427008,1720389745106,-733.76,0.00034264,41]
[331427009,1720389745153,-500.0,0.00034264,32]
[331427010,1720389745197,-1541.33,0.00034264,46]
[331427011,1720389745245,-1296.23,0.00034264,50]
[331427012,1720389745292,-500.0,0.00034264,39]
[331427013,1720389745342,-728.55,0.00034264,30]
[331427014,1720389745385,-733.76,0.00034264,42]
[331427015,1720389745428,-500.0,0.00034264,38]
[331427016,1720389745477,-500.0,0.00034264,33]
[331427017,1720389745519,-1541.33,0.00034264,47]
[331427018,1720389745564,-1296.23,0.00034264,51]
[331427019,1720389745606,-500.0,0.00034264,40]
[331427020,1720389745649,-728.55,0.00034264,31]
[331427021,1720389745693,-733.76,0.00034264,43]
[331427022,1720389745736,-500.0,0.00034264,39]
[331427023,1720389745780,-505.27227637,0.00034264,34]
[331427024,1720389746316,-1541.33,0.00034264,48]
[331427025,1720389746359,-1296.23,0.00034264,52]
[331427026,1720389746401,-500.0,0.00034264,41]
[331427027,1720389746443,-728.55,0.00034264,32]
[331427028,1720389746485,-500.0,0.00034264,40]
[331427029,1720389746528,-733.76,0.00034264,44]
[331427030,1720389746569,-1541.33,0.00034264,49]
[331427031,1720389746611,-1296.24484439,0.00034264,53]
[331427032,1720389746651,-500.0,0.00034264,42]
[331427033,1720389746695,-728.55,0.00034264,33]
[331427034,1720389746735,-500.0,0.00034264,30]
[331427035,1720389746779,-733.76,0.00034264,45]
[331427036,1720389746819,-1541.33,0.00034264,50]
[331427037,1720389746861,-500.0,0.00034264,31]
[331427038,1720389746902,-728.55,0.00034264,34]
[331427039,1720389746946,-733.76,0.00034264,46]
[331427040,1720389746987,-170.097192,0.00034264,41]
[331427041,1720389747031,-1541.33,0.00034264,51]
[331427042,1720389747072,-500.0,0.00034264,32]
[331427043,1720389747115,-500.0,0.00034264,43]
[331427044,1720389747156,-733.76,0.00034264,47]
[331427045,1720389747200,-1541.33,0.00034264,52]
[331427046,1720389747240,-349.54172871,0.00034264,33]
[331427047,1720389747282,-500.0,0.00034264,44]
[331427048,1720389747327,-733.76,0.00034264,48]
[331427049,1720389747370,-500.0,0.00034264,34]
[331427050,1720389747412,-1541.41092696,0.00034264,53]
[331427051,1720389747452,-558.65202584,0.00034264,45]
[331427052,1720389747493,-733.76,0.00034264,49]
[331427053,1720389747530,-500.0,0.00034264,35]
[331427054,1720389747571,-898.6,0.00034264,33]
[331427055,1720389747609,-733.76,0.00034264,50]
[331427056,1720389747649,-511.68320985,0.00034264,36]
[331427057,1720389747687,-733.76,0.00034264,51]
[331427058,1720389747726,-898.6,0.00034264,34]
[331427059,1720389747763,-733.76,0.00034264,52]
[331427060,1720389747802,-500.0,0.00034264,30]
[331427061,1720389747839,-898.6,0.00034264,35]
[331427062,1720389747877,-733.92551508,0.00034264,53]
[331427063,1720389747914,-500.0,0.00034264,31]
[331427064,1720389747952,-898.6,0.00034264,36]
[331427065,1720389747991,-500.0,0.00034264,30]
[331427066,1720389748029,-500.0,0.00034264,32]
[331427067,1720389748066,-898.6,0.00034264,37]
[331427068,1720389748106,-500.0,0.00034264,31]
[331427069,1720389748144,-500.0,0.00034264,33]
[331427070,1720389748181,-898.6,0.00034264,38]
[331427071,1720389748219,-500.0,0.00034264,32]
[331427072,1720389748256,-500.0,0.00034264,30]
[331427073,1720389748294,-544.97334924,0.00034264,30]
[331427074,1720389748336,-500.0,0.00034264,34]
[331427075,1720389748377,-898.6,0.00034264,39]
[331427076,1720389748417,-500.0,0.00034264,33]
[331427077,1720389748458,-500.0,0.00034264,31]
[331427078,1720389748496,-898.6,0.00034264,40]
[331427079,1720389748539,-500.0,0.00034264,34]
[331427080,1720389748579,-500.0,0.00034264,32]
[331427081,1720389748621,-500.0,0.00034264,35]
[331427082,1720389748660,-898.6,0.00034264,41]
[331427083,1720389748706,-500.0,0.00034264,35]
[331427084,1720389748746,-500.0,0.00034264,33]
[331427085,1720389748788,-500.0,0.00034264,30]
[331427086,1720389748827,-898.6,0.00034264,42]
[331427087,1720389748867,-500.0,0.00034264,36]
[331427088,1720389748905,-500.0,0.00034264,34]